[Event "Titled Tuesday Blitz April 26 Early 2022"]
[White "Andreikin, Dmitry"]
[Black "Yuan, Qingyu"]
[WhiteFideId "4158814"]
[BlackFideId "8609772"]
[WhiteElo "2736"]
[BlackElo "2359"]
[Result "0-1"]
[Round "11"]
[TimeControl "180+1"]
[Date "2022.04.26"]
[WhiteClock "0:00:59"]
[BlackClock "0:00:13"]

1. c4 {[%clk 0:03:00]}  e6 {[%clk 0:03:00]} 2. Qc2 {[%clk 0:03:00]}  d5 {[%clk 0:02:59]} 3. b3 {[%clk 0:02:59]}  Nf6 {[%clk 0:02:50]} 4. a3 {[%clk 0:02:58]}  a5 {[%clk 0:02:47]} 5. e3 {[%clk 0:02:56]}  Be7 {[%clk 0:02:38]} 6. Nf3 {[%clk 0:02:55]}  O-O {[%clk 0:02:38]} 7. Bb2 {[%clk 0:02:55]}  b6 {[%clk 0:02:37]} 8. d4 {[%clk 0:02:55]}  Nbd7 {[%clk 0:02:34]} 9. Nc3 {[%clk 0:02:53]}  Bb7 {[%clk 0:02:33]} 10. Bd3 {[%clk 0:02:50]}  Re8 {[%clk 0:02:23]} 11. O-O {[%clk 0:02:49]}  h6 {[%clk 0:02:22]} 12. Rad1 {[%clk 0:02:46]}  Bf8 {[%clk 0:02:09]} 13. e4 {[%clk 0:02:43]}  dxe4 {[%clk 0:02:05]} 14. Nxe4 {[%clk 0:02:43]}  Nxe4 {[%clk 0:02:05]} 15. Bxe4 {[%clk 0:02:44]}  Bxe4 {[%clk 0:02:05]} 16. Qxe4 {[%clk 0:01:59]}  Nf6 {[%clk 0:02:06]} 17. Qc6 {[%clk 0:01:57]}  Qd6 {[%clk 0:01:58]} 18. Ne5 {[%clk 0:01:56]}  Red8 {[%clk 0:01:47]} 19. g3 {[%clk 0:01:55]}  Qxc6 {[%clk 0:01:43]} 20. Nxc6 {[%clk 0:01:56]}  Rd6 {[%clk 0:01:44]} 21. Ne5 {[%clk 0:01:56]}  Rad8 {[%clk 0:01:42]} 22. Rd3 {[%clk 0:01:55]}  Nd7 {[%clk 0:01:26]} 23. Nf3 {[%clk 0:01:55]}  e5 {[%clk 0:01:15]} 24. Re1 {[%clk 0:01:51]}  Nc5 {[%clk 0:01:08]} 25. Rdd1 {[%clk 0:01:42]}  exd4 {[%clk 0:01:07]} 26. b4 {[%clk 0:01:39]}  Na4 {[%clk 0:00:59]} 27. Ba1 {[%clk 0:01:31]}  axb4 {[%clk 0:00:59]} 28. axb4 {[%clk 0:01:31]}  c5 {[%clk 0:00:57]} 29. b5 {[%clk 0:01:29]}  g6 {[%clk 0:00:46]} 30. Ne5 {[%clk 0:01:27]}  Re8 {[%clk 0:00:42]} 31. Nd3 {[%clk 0:01:21]}  Rde6 {[%clk 0:00:41]} 32. Kf1 {[%clk 0:01:20]}  Bd6 {[%clk 0:00:39]} 33. Bb2 {[%clk 0:01:17]}  Rxe1+ {[%clk 0:00:36]} 34. Rxe1 {[%clk 0:01:17]}  Kf8 {[%clk 0:00:34]} 35. Bc1 {[%clk 0:01:16]}  g5 {[%clk 0:00:26]} 36. h4 {[%clk 0:01:15]}  f6 {[%clk 0:00:25]} 37. h5 {[%clk 0:01:14]}  Nc3 {[%clk 0:00:21]} 38. Bd2 {[%clk 0:01:10]}  Rxe1+ {[%clk 0:00:19]} 39. Bxe1 {[%clk 0:01:06]}  Ne4 {[%clk 0:00:16]} 40. g4 {[%clk 0:01:05]}  Bc7 {[%clk 0:00:14]} 41. f3 {[%clk 0:01:05]}  Nd6 {[%clk 0:00:14]} 42. Bg3 {[%clk 0:01:05]}  Nxb5 {[%clk 0:00:14]} 43. cxb5 {[%clk 0:01:06]}  Bxg3 {[%clk 0:00:14]} 44. Nb2 {[%clk 0:01:06]}  Ke7 {[%clk 0:00:14]} 45. Ke2 {[%clk 0:01:07]}  Ke6 {[%clk 0:00:13]} 46. Kd3 {[%clk 0:01:07]}  Kd5 {[%clk 0:00:13]} 47. Nc4 {[%clk 0:01:07]}  Bc7 {[%clk 0:00:13]} 48. Nd2 {[%clk 0:01:08]}  Ke5 {[%clk 0:00:13]} 49. Ne4 {[%clk 0:01:01]}  f5 {[%clk 0:00:12]} 50. Ng3 {[%clk 0:01:01]}  fxg4 {[%clk 0:00:12]} 51. fxg4 {[%clk 0:01:02]}  Kf4 {[%clk 0:00:11]} 52. Nf5 {[%clk 0:01:02]}  Kxg4 {[%clk 0:00:12]} 53. Nxh6+ {[%clk 0:01:02]}  Kxh5 {[%clk 0:00:12]} 54. Ng8 {[%clk 0:01:01]}  g4 {[%clk 0:00:12]} 55. Nf6+ {[%clk 0:01:01]}  Kg5 {[%clk 0:00:12]} 56. Ne8 {[%clk 0:00:59]}  Be5 {[%clk 0:00:12]} 57. Ke4 {[%clk 0:00:59]}  g3 {[%clk 0:00:13]} 58. Kxe5 {[%clk 0:00:59]}  g2 {[%clk 0:00:13]} 0-1


[Site "https://www.chess.com"]

[Event "Titled Tuesday Blitz April 26 Early 2022"]
[White "Andrews, Todd"]
[Black "Koellner, Ruben Gideon"]
[WhiteFideId "2012456"]
[BlackFideId "12993093"]
[WhiteElo "2371"]
[BlackElo "2589"]
[Result "0-1"]
[Round "11"]
[TimeControl "180+1"]
[Date "2022.04.26"]
[WhiteClock "0:00:01"]
[BlackClock "0:00:19"]

1. e4 {[%clk 0:03:00]}  d6 {[%clk 0:02:58]} 2. d4 {[%clk 0:02:59]}  Nf6 {[%clk 0:02:59]} 3. Nc3 {[%clk 0:02:58]}  e5 {[%clk 0:02:59]} 4. Nf3 {[%clk 0:02:53]}  Nbd7 {[%clk 0:02:58]} 5. Bc4 {[%clk 0:02:49]}  Be7 {[%clk 0:02:58]} 6. O-O {[%clk 0:02:48]}  c6 {[%clk 0:02:56]} 7. a4 {[%clk 0:02:46]}  h6 {[%clk 0:02:56]} 8. Ba2 {[%clk 0:02:46]}  Qc7 {[%clk 0:02:56]} 9. h3 {[%clk 0:02:32]}  Nf8 {[%clk 0:02:55]} 10. Re1 {[%clk 0:02:25]}  g5 {[%clk 0:02:46]} 11. Nh2 {[%clk 0:01:55]}  Ng6 {[%clk 0:02:29]} 12. Ng4 {[%clk 0:01:48]}  Bxg4 {[%clk 0:02:27]} 13. hxg4 {[%clk 0:01:48]}  Qc8 {[%clk 0:02:28]} 14. f3 {[%clk 0:01:34]}  h5 {[%clk 0:02:27]} 15. Bxg5 {[%clk 0:01:28]}  hxg4 {[%clk 0:02:26]} 16. Bxf6 {[%clk 0:01:15]}  Bxf6 {[%clk 0:02:22]} 17. fxg4 {[%clk 0:01:14]}  exd4 {[%clk 0:02:17]} 18. Qf3 {[%clk 0:01:09]}  Qd8 {[%clk 0:02:04]} 19. g5 {[%clk 0:01:02]}  Ne5 {[%clk 0:01:59]} 20. Qf5 {[%clk 0:00:54]}  dxc3 {[%clk 0:01:53]} 21. gxf6 {[%clk 0:00:53]}  cxb2 {[%clk 0:01:41]} 22. Rad1 {[%clk 0:00:52]}  Rh6 {[%clk 0:01:22]} 23. Rf1 {[%clk 0:00:44]}  Qd7 {[%clk 0:01:03]} 24. Qxd7+ {[%clk 0:00:16]}  Kxd7 {[%clk 0:01:03]} 25. Rf5 {[%clk 0:00:15]}  Kc7 {[%clk 0:01:01]} 26. Rb1 {[%clk 0:00:11]}  Rg8 {[%clk 0:00:52]} 27. Rxb2 {[%clk 0:00:11]}  Rgg6 {[%clk 0:00:52]} 28. c3 {[%clk 0:00:06]}  Rxf6 {[%clk 0:00:33]} 29. Rbf2 {[%clk 0:00:06]}  Rxf5 {[%clk 0:00:33]} 30. Rxf5 {[%clk 0:00:07]}  Rh7 {[%clk 0:00:32]} 31. a5 {[%clk 0:00:07]}  b6 {[%clk 0:00:25]} 32. axb6+ {[%clk 0:00:08]}  axb6 {[%clk 0:00:26]} 33. Kf2 {[%clk 0:00:08]}  Kd7 {[%clk 0:00:26]} 34. Ke3 {[%clk 0:00:08]}  Ke7 {[%clk 0:00:27]} 35. Kf4 {[%clk 0:00:08]}  Rg7 {[%clk 0:00:27]} 36. Rg5 {[%clk 0:00:05]}  Rxg5 {[%clk 0:00:26]} 37. Kxg5 {[%clk 0:00:05]}  b5 {[%clk 0:00:27]} 38. Kf5 {[%clk 0:00:05]}  c5 {[%clk 0:00:27]} 39. g4 {[%clk 0:00:06]}  b4 {[%clk 0:00:25]} 40. cxb4 {[%clk 0:00:06]}  cxb4 {[%clk 0:00:26]} 41. g5 {[%clk 0:00:06]}  Nd3 {[%clk 0:00:26]} 42. Bc4 {[%clk 0:00:06]}  Nc5 {[%clk 0:00:23]} 43. Ba2 {[%clk 0:00:05]}  b3 {[%clk 0:00:22]} 44. Bb1 {[%clk 0:00:05]}  Nd7 {[%clk 0:00:23]} 45. g6 {[%clk 0:00:02]}  fxg6+ {[%clk 0:00:22]} 46. Kxg6 {[%clk 0:00:02]}  Ke6 {[%clk 0:00:23]} 47. Kg5 {[%clk 0:00:02]}  Ke5 {[%clk 0:00:23]} 48. Kg4 {[%clk 0:00:02]}  Kd4 {[%clk 0:00:23]} 49. Kf4 {[%clk 0:00:02]}  Ne5 {[%clk 0:00:23]} 50. Kf5 {[%clk 0:00:02]}  Nc4 {[%clk 0:00:23]} 51. Ke6 {[%clk 0:00:02]}  Nd2 {[%clk 0:00:21]} 52. Kxd6 {[%clk 0:00:01]}  Nxb1 {[%clk 0:00:19]} 53. e5 {[%clk 0:00:01]}  Nc3 {[%clk 0:00:19]} 54. e6 {[%clk 0:00:02]}  Ne4+ {[%clk 0:00:19]} 55. Kc6 {[%clk 0:00:01]}  b2 {[%clk 0:00:18]} 56. e7 {[%clk 0:00:01]}  Nf6 {[%clk 0:00:18]} 57. Kd6 {[%clk 0:00:02]}  b1=Q {[%clk 0:00:19]} 58. Ke6 {[%clk 0:00:01]}  Qg6 {[%clk 0:00:19]} 0-1


[Site "https://www.chess.com"]

[Event "Titled Tuesday Blitz April 26 Early 2022"]
[White "Bachmann, Axel"]
[Black "De Arruda, Leandro Formes"]
[WhiteFideId "3700488"]
[BlackFideId "22722009"]
[WhiteElo "2587"]
[BlackElo "1852"]
[Result "1-0"]
[Round "11"]
[TimeControl "180+1"]
[Date "2022.04.26"]
[WhiteClock "0:00:09"]
[BlackClock "0:00:07"]

1. d4 {[%clk 0:03:00]}  d5 {[%clk 0:03:00]} 2. Nf3 {[%clk 0:02:59]}  Nf6 {[%clk 0:03:00]} 3. g3 {[%clk 0:03:00]}  e6 {[%clk 0:03:01]} 4. Bg2 {[%clk 0:03:00]}  Nbd7 {[%clk 0:03:00]} 5. c4 {[%clk 0:03:00]}  c6 {[%clk 0:03:00]} 6. O-O {[%clk 0:03:01]}  Be7 {[%clk 0:03:00]} 7. Qc2 {[%clk 0:03:02]}  O-O {[%clk 0:03:01]} 8. Rd1 {[%clk 0:03:02]}  Ne4 {[%clk 0:03:01]} 9. b3 {[%clk 0:02:54]}  f5 {[%clk 0:03:01]} 10. Ba3 {[%clk 0:02:53]}  Bxa3 {[%clk 0:02:59]} 11. Nxa3 {[%clk 0:02:54]}  Qf6 {[%clk 0:03:00]} 12. e3 {[%clk 0:02:50]}  g5 {[%clk 0:02:59]} 13. Qe2 {[%clk 0:02:48]}  f4 {[%clk 0:02:56]} 14. exf4 {[%clk 0:02:43]}  gxf4 {[%clk 0:02:57]} 15. Rac1 {[%clk 0:02:40]}  fxg3 {[%clk 0:02:55]} 16. hxg3 {[%clk 0:02:40]}  Rf7 {[%clk 0:02:46]} 17. Rd3 {[%clk 0:02:37]}  Rg7 {[%clk 0:02:38]} 18. Ne5 {[%clk 0:02:25]}  Ng5 {[%clk 0:01:58]} 19. Nc2 {[%clk 0:02:12]}  Nxe5 {[%clk 0:01:54]} 20. dxe5 {[%clk 0:02:12]}  Qh6 {[%clk 0:01:50]} 21. f4 {[%clk 0:01:43]}  Nh3+ {[%clk 0:01:45]} 22. Bxh3 {[%clk 0:01:38]}  Qxh3 {[%clk 0:01:46]} 23. Qg2 {[%clk 0:01:38]}  Qf5 {[%clk 0:01:43]} 24. Rcd1 {[%clk 0:01:33]}  Bd7 {[%clk 0:01:43]} 25. Nd4 {[%clk 0:01:30]}  Qg4 {[%clk 0:01:34]} 26. c5 {[%clk 0:01:22]}  Rf8 {[%clk 0:01:33]} 27. b4 {[%clk 0:01:14]}  Rxf4 {[%clk 0:01:27]} 28. R1d2 {[%clk 0:01:05]}  Re4 {[%clk 0:01:19]} 29. Ne2 {[%clk 0:00:54]}  Rxe5 {[%clk 0:01:12]} 30. Nf4 {[%clk 0:00:53]}  Re1+ {[%clk 0:01:07]} 31. Kf2 {[%clk 0:00:53]}  Re4 {[%clk 0:00:58]} 32. Qf3 {[%clk 0:00:28]}  Qf5 {[%clk 0:00:49]} 33. Ng2 {[%clk 0:00:13]}  Qg6 {[%clk 0:00:39]} 34. Nh4 {[%clk 0:00:11]}  Qg5 {[%clk 0:00:29]} 35. Re2 {[%clk 0:00:07]}  Rf7 {[%clk 0:00:27]} 36. Rxe4 {[%clk 0:00:03]}  Rxf3+ {[%clk 0:00:24]} 37. Nxf3 {[%clk 0:00:03]}  dxe4 {[%clk 0:00:15]} 38. Nxg5 {[%clk 0:00:03]}  exd3 {[%clk 0:00:15]} 39. Ke3 {[%clk 0:00:04]}  h6 {[%clk 0:00:14]} 40. Ne4 {[%clk 0:00:04]}  Kf7 {[%clk 0:00:14]} 41. Kxd3 {[%clk 0:00:04]}  Ke7 {[%clk 0:00:13]} 42. Nd6 {[%clk 0:00:05]}  b6 {[%clk 0:00:13]} 43. Ke4 {[%clk 0:00:05]}  Be8 {[%clk 0:00:12]} 44. Ke5 {[%clk 0:00:04]}  Bg6 {[%clk 0:00:11]} 45. Nc8+ {[%clk 0:00:05]}  Kd7 {[%clk 0:00:11]} 46. Nxa7 {[%clk 0:00:05]}  bxc5 {[%clk 0:00:11]} 47. bxc5 {[%clk 0:00:05]}  Bb1 {[%clk 0:00:11]} 48. a4 {[%clk 0:00:05]}  Bd3 {[%clk 0:00:11]} 49. Kf6 {[%clk 0:00:02]}  h5 {[%clk 0:00:08]} 50. Kg5 {[%clk 0:00:02]}  Be2 {[%clk 0:00:08]} 51. Kf6 {[%clk 0:00:03]}  Bd3 {[%clk 0:00:07]} 52. Ke5 {[%clk 0:00:03]}  Be2 {[%clk 0:00:06]} 53. a5 {[%clk 0:00:03]}  Kc7 {[%clk 0:00:05]} 54. Kxe6 {[%clk 0:00:03]}  Kb7 {[%clk 0:00:05]} 55. Kd6 {[%clk 0:00:01]}  Kxa7 {[%clk 0:00:04]} 56. Kxc6 {[%clk 0:00:02]}  Kb8 {[%clk 0:00:04]} 57. Kb6 {[%clk 0:00:02]}  Kc8 {[%clk 0:00:03]} 58. a6 {[%clk 0:00:01]}  Kb8 {[%clk 0:00:04]} 59. c6 {[%clk 0:00:02]}  Kc8 {[%clk 0:00:04]} 60. a7 {[%clk 0:00:02]}  Kd8 {[%clk 0:00:03]} 61. a8=Q+ {[%clk 0:00:03]}  Ke7 {[%clk 0:00:04]} 62. c7 {[%clk 0:00:03]}  Bf3 {[%clk 0:00:04]} 63. c8=Q {[%clk 0:00:04]}  Bxa8 {[%clk 0:00:05]} 64. Qxa8 {[%clk 0:00:05]}  Kf6 {[%clk 0:00:06]} 65. Qe4 {[%clk 0:00:05]}  Kg5 {[%clk 0:00:07]} 66. Qf4+ {[%clk 0:00:06]}  Kg6 {[%clk 0:00:06]} 67. Qh4 {[%clk 0:00:07]}  Kh6 {[%clk 0:00:06]} 68. Kc5 {[%clk 0:00:08]}  Kg6 {[%clk 0:00:07]} 69. Kd4 {[%clk 0:00:09]} 1-0


[Site "https://www.chess.com"]

[Event "Titled Tuesday Blitz April 26 Early 2022"]
[White "Begunov, Konstantin"]
[Black "Jakubowski, Krzysztof"]
[WhiteFideId "4118510"]
[BlackFideId "1112848"]
[WhiteElo "2262"]
[BlackElo "2365"]
[Result "0-1"]
[Round "11"]
[TimeControl "180+1"]
[Date "2022.04.26"]
[WhiteClock "0:00:08"]
[BlackClock "0:01:12"]

1. d4 {[%clk 0:02:57]}  Nf6 {[%clk 0:02:59]} 2. c4 {[%clk 0:02:57]}  e6 {[%clk 0:02:59]} 3. Nf3 {[%clk 0:02:57]}  Bb4+ {[%clk 0:02:58]} 4. Nbd2 {[%clk 0:02:56]}  d5 {[%clk 0:02:54]} 5. a3 {[%clk 0:02:53]}  Bd6 {[%clk 0:02:52]} 6. Qc2 {[%clk 0:02:52]}  O-O {[%clk 0:02:50]} 7. e4 {[%clk 0:02:52]}  dxe4 {[%clk 0:02:49]} 8. Nxe4 {[%clk 0:02:52]}  Nxe4 {[%clk 0:02:49]} 9. Qxe4 {[%clk 0:02:53]}  Nd7 {[%clk 0:02:48]} 10. Bd3 {[%clk 0:02:48]}  Nf6 {[%clk 0:02:47]} 11. Qh4 {[%clk 0:02:46]}  Be7 {[%clk 0:02:47]} 12. O-O {[%clk 0:02:41]}  g6 {[%clk 0:02:44]} 13. Bg5 {[%clk 0:02:28]}  Re8 {[%clk 0:02:42]} 14. Rad1 {[%clk 0:02:24]}  c6 {[%clk 0:02:39]} 15. Ne5 {[%clk 0:02:20]}  Nd7 {[%clk 0:02:37]} 16. Nxf7 {[%clk 0:02:13]}  Bxg5 {[%clk 0:02:37]} 17. Nxg5 {[%clk 0:02:12]}  Nf8 {[%clk 0:02:26]} 18. Rfe1 {[%clk 0:02:00]}  Bd7 {[%clk 0:02:25]} 19. Re3 {[%clk 0:01:50]}  Re7 {[%clk 0:02:11]} 20. Qh6 {[%clk 0:01:36]}  Rg7 {[%clk 0:02:10]} 21. Rf3 {[%clk 0:01:27]}  Qe7 {[%clk 0:02:03]} 22. Re1 {[%clk 0:01:13]}  Qd6 {[%clk 0:01:49]} 23. Ne4 {[%clk 0:01:11]}  Qxd4 {[%clk 0:01:45]} 24. Bc2 {[%clk 0:00:28]}  Qxb2 {[%clk 0:01:39]} 25. Bb1 {[%clk 0:00:17]}  Kh8 {[%clk 0:01:32]} 26. Rd1 {[%clk 0:00:14]}  c5 {[%clk 0:01:18]} 27. h4 {[%clk 0:00:13]}  Bc6 {[%clk 0:01:17]} 28. h5 {[%clk 0:00:11]}  gxh5 {[%clk 0:01:15]} 29. Rh3 {[%clk 0:00:08]}  Qe2 {[%clk 0:01:12]} 0-1


[Site "https://www.chess.com"]

[Event "Titled Tuesday Blitz April 26 Early 2022"]
[White "Bilych, Olexiy"]
[Black "Iljin, Timofey"]
[WhiteFideId "14156504"]
[BlackFideId "14110180"]
[WhiteElo "2176"]
[BlackElo "2396"]
[Result "1-0"]
[Round "11"]
[TimeControl "180+1"]
[Date "2022.04.26"]
[WhiteClock "0:00:37"]
[BlackClock "0:00:01"]

1. e4 {[%clk 0:02:59]}  d5 {[%clk 0:02:58]} 2. exd5 {[%clk 0:02:59]}  Nf6 {[%clk 0:02:58]} 3. Bb5+ {[%clk 0:02:52]}  Nbd7 {[%clk 0:02:57]} 4. d4 {[%clk 0:02:41]}  Nxd5 {[%clk 0:02:55]} 5. Nf3 {[%clk 0:02:41]}  c6 {[%clk 0:02:54]} 6. Be2 {[%clk 0:02:40]}  g6 {[%clk 0:02:52]} 7. O-O {[%clk 0:02:40]}  Bg7 {[%clk 0:02:52]} 8. c4 {[%clk 0:02:40]}  N5f6 {[%clk 0:02:52]} 9. Nc3 {[%clk 0:02:41]}  O-O {[%clk 0:02:53]} 10. Bf4 {[%clk 0:02:41]}  b6 {[%clk 0:02:47]} 11. Ne5 {[%clk 0:02:40]}  Bb7 {[%clk 0:02:47]} 12. Bf3 {[%clk 0:02:40]}  Rc8 {[%clk 0:02:47]} 13. Qa4 {[%clk 0:02:36]}  Nxe5 {[%clk 0:02:43]} 14. dxe5 {[%clk 0:02:37]}  Nd7 {[%clk 0:02:43]} 15. Rad1 {[%clk 0:02:31]}  a6 {[%clk 0:02:26]} 16. Bg3 {[%clk 0:02:23]}  Qc7 {[%clk 0:02:05]} 17. e6 {[%clk 0:02:23]}  Ne5 {[%clk 0:02:05]} 18. exf7+ {[%clk 0:02:23]}  Rxf7 {[%clk 0:02:06]} 19. Bg4 {[%clk 0:02:19]}  b5 {[%clk 0:01:51]} 20. Qc2 {[%clk 0:02:09]}  b4 {[%clk 0:01:19]} 21. Ne4 {[%clk 0:01:59]}  c5 {[%clk 0:01:16]} 22. Bxc8 {[%clk 0:01:47]}  Qxc8 {[%clk 0:01:17]} 23. Ng5 {[%clk 0:01:43]}  Rf5 {[%clk 0:01:15]} 24. Ne4 {[%clk 0:01:39]}  h6 {[%clk 0:01:03]} 25. Rfe1 {[%clk 0:00:54]}  Kh7 {[%clk 0:01:02]} 26. b3 {[%clk 0:00:53]}  a5 {[%clk 0:01:01]} 27. Qe2 {[%clk 0:00:51]}  Nf7 {[%clk 0:00:55]} 28. Qe3 {[%clk 0:00:46]}  Qc6 {[%clk 0:00:53]} 29. f3 {[%clk 0:00:44]}  Bd4 {[%clk 0:00:50]} 30. Rxd4 {[%clk 0:00:44]}  cxd4 {[%clk 0:00:51]} 31. Qxd4 {[%clk 0:00:45]}  e5 {[%clk 0:00:38]} 32. Qa7 {[%clk 0:00:42]}  Qd7 {[%clk 0:00:35]} 33. Nc5 {[%clk 0:00:38]}  Qc7 {[%clk 0:00:15]} 34. Nxb7 {[%clk 0:00:36]}  Nd6 {[%clk 0:00:14]} 35. Qc5 {[%clk 0:00:36]}  Qxb7 {[%clk 0:00:11]} 36. Qxd6 {[%clk 0:00:36]}  e4 {[%clk 0:00:10]} 37. fxe4 {[%clk 0:00:35]}  Rf7 {[%clk 0:00:10]} 38. e5 {[%clk 0:00:35]}  Rd7 {[%clk 0:00:10]} 39. Qf6 {[%clk 0:00:34]}  Rf7 {[%clk 0:00:09]} 40. Qh4 {[%clk 0:00:32]}  Qb6+ {[%clk 0:00:08]} 41. Kh1 {[%clk 0:00:32]}  Qe6 {[%clk 0:00:09]} 42. Qe4 {[%clk 0:00:32]}  h5 {[%clk 0:00:08]} 43. h4 {[%clk 0:00:32]}  Rf5 {[%clk 0:00:07]} 44. Kh2 {[%clk 0:00:32]}  Rf7 {[%clk 0:00:06]} 45. c5 {[%clk 0:00:33]}  Qa6 {[%clk 0:00:06]} 46. e6 {[%clk 0:00:32]}  Re7 {[%clk 0:00:06]} 47. Bd6 {[%clk 0:00:33]}  Re8 {[%clk 0:00:05]} 48. e7 {[%clk 0:00:33]}  Qc8 {[%clk 0:00:05]} 49. Rf1 {[%clk 0:00:34]}  Qg4 {[%clk 0:00:05]} 50. Qxg4 {[%clk 0:00:33]}  Kh6 {[%clk 0:00:06]} 51. Rf8 {[%clk 0:00:34]}  hxg4 {[%clk 0:00:02]} 52. Rxe8 {[%clk 0:00:34]}  g3+ {[%clk 0:00:03]} 53. Kxg3 {[%clk 0:00:35]}  g5 {[%clk 0:00:04]} 54. hxg5+ {[%clk 0:00:35]}  Kxg5 {[%clk 0:00:05]} 55. Rg8+ {[%clk 0:00:35]}  Kf6 {[%clk 0:00:04]} 56. e8=Q {[%clk 0:00:36]}  a4 {[%clk 0:00:05]} 57. Rg6+ {[%clk 0:00:36]}  Kf5 {[%clk 0:00:01]} 58. Qe6# {[%clk 0:00:37]} 1-0


[Site "https://www.chess.com"]

[Event "Titled Tuesday Blitz April 26 Early 2022"]
[White "Buchenau, Frank"]
[Black "Rottenwohrer Suarez, Juan"]
[WhiteFideId "4604350"]
[BlackFideId "32068182"]
[WhiteElo "2193"]
[BlackElo "2158"]
[Result "1-0"]
[Round "11"]
[TimeControl "180+1"]
[Date "2022.04.26"]
[WhiteClock "0:00:21"]
[BlackClock "0:00:01"]

1. e4 {[%clk 0:03:00]}  g6 {[%clk 0:03:00]} 2. d4 {[%clk 0:03:00]}  Bg7 {[%clk 0:03:00]} 3. Nc3 {[%clk 0:03:00]}  c6 {[%clk 0:02:59]} 4. Nf3 {[%clk 0:02:59]}  d5 {[%clk 0:03:00]} 5. Bf4 {[%clk 0:03:00]}  dxe4 {[%clk 0:02:58]} 6. Nxe4 {[%clk 0:03:00]}  Nf6 {[%clk 0:02:58]} 7. Nxf6+ {[%clk 0:02:59]}  exf6 {[%clk 0:02:51]} 8. Bd3 {[%clk 0:02:56]}  O-O {[%clk 0:02:51]} 9. O-O {[%clk 0:02:56]}  Nd7 {[%clk 0:02:32]} 10. h3 {[%clk 0:02:53]}  Nb6 {[%clk 0:02:31]} 11. c4 {[%clk 0:02:52]}  Be6 {[%clk 0:02:21]} 12. b3 {[%clk 0:02:52]}  Nc8 {[%clk 0:02:22]} 13. Re1 {[%clk 0:02:51]}  Nd6 {[%clk 0:02:17]} 14. Qd2 {[%clk 0:02:49]}  Bf5 {[%clk 0:02:11]} 15. Bxf5 {[%clk 0:02:47]}  Nxf5 {[%clk 0:02:10]} 16. Rad1 {[%clk 0:02:47]}  Qd7 {[%clk 0:02:05]} 17. d5 {[%clk 0:02:42]}  Rfe8 {[%clk 0:01:48]} 18. dxc6 {[%clk 0:02:37]}  Qxc6 {[%clk 0:01:48]} 19. Rxe8+ {[%clk 0:02:29]}  Rxe8 {[%clk 0:01:49]} 20. Qd7 {[%clk 0:02:28]}  g5 {[%clk 0:01:40]} 21. Qxc6 {[%clk 0:02:09]}  bxc6 {[%clk 0:01:41]} 22. Bc7 {[%clk 0:01:52]}  Bf8 {[%clk 0:01:29]} 23. Kf1 {[%clk 0:01:40]}  h5 {[%clk 0:01:20]} 24. Rd8 {[%clk 0:01:33]}  Rxd8 {[%clk 0:01:11]} 25. Bxd8 {[%clk 0:01:34]}  Kg7 {[%clk 0:01:12]} 26. Bc7 {[%clk 0:01:16]}  Bc5 {[%clk 0:01:04]} 27. Ke2 {[%clk 0:01:09]}  Nd4+ {[%clk 0:00:54]} 28. Nxd4 {[%clk 0:01:09]}  Bxd4 {[%clk 0:00:55]} 29. b4 {[%clk 0:01:08]}  a6 {[%clk 0:00:44]} 30. a4 {[%clk 0:01:07]}  Kf8 {[%clk 0:00:34]} 31. g4 {[%clk 0:00:57]}  hxg4 {[%clk 0:00:32]} 32. hxg4 {[%clk 0:00:58]}  Ke8 {[%clk 0:00:31]} 33. b5 {[%clk 0:00:47]}  cxb5 {[%clk 0:00:31]} 34. cxb5 {[%clk 0:00:47]}  axb5 {[%clk 0:00:30]} 35. axb5 {[%clk 0:00:47]}  Kd7 {[%clk 0:00:30]} 36. b6 {[%clk 0:00:47]}  Kc6 {[%clk 0:00:30]} 37. Kf3 {[%clk 0:00:39]}  Bc5 {[%clk 0:00:16]} 38. Bd8 {[%clk 0:00:37]}  Bd4 {[%clk 0:00:11]} 39. Ke4 {[%clk 0:00:30]}  Bxf2 {[%clk 0:00:08]} 40. Kf5 {[%clk 0:00:28]}  Bd4 {[%clk 0:00:06]} 41. Bc7 {[%clk 0:00:22]}  Kb7 {[%clk 0:00:04]} 42. Ke4 {[%clk 0:00:21]}  Bxb6 {[%clk 0:00:04]} 43. Bxb6 {[%clk 0:00:20]}  Kxb6 {[%clk 0:00:05]} 44. Kf5 {[%clk 0:00:21]}  Kc6 {[%clk 0:00:06]} 45. Kxf6 {[%clk 0:00:21]}  Kd6 {[%clk 0:00:06]} 46. Kxf7 {[%clk 0:00:21]}  Ke5 {[%clk 0:00:03]} 47. Kg6 {[%clk 0:00:22]}  Ke6 {[%clk 0:00:03]} 48. Kxg5 {[%clk 0:00:21]}  Kf7 {[%clk 0:00:02]} 49. Kh6 {[%clk 0:00:22]}  Kf8 {[%clk 0:00:01]} 50. Kh7 {[%clk 0:00:21]}  Kf7 {[%clk 0:00:01]} 51. g5 {[%clk 0:00:21]} 1-0


[Site "https://www.chess.com"]

[Event "Titled Tuesday Blitz April 26 Early 2022"]
[White "Chuemsakul, Sarocha"]
[Black "Kosteniuk, Alexandra"]
[WhiteFideId "6203710"]
[BlackFideId "4128125"]
[WhiteElo "1703"]
[BlackElo "2469"]
[Result "0-1"]
[Round "11"]
[TimeControl "180+1"]
[Date "2022.04.26"]
[WhiteClock "0:00:01"]
[BlackClock "0:01:32"]

1. d4 {[%clk 0:03:00]}  Nf6 {[%clk 0:02:59]} 2. c4 {[%clk 0:03:01]}  e6 {[%clk 0:02:59]} 3. Nf3 {[%clk 0:03:00]}  c5 {[%clk 0:02:59]} 4. d5 {[%clk 0:03:00]}  b5 {[%clk 0:03:00]} 5. Nc3 {[%clk 0:02:51]}  b4 {[%clk 0:02:55]} 6. Na4 {[%clk 0:02:51]}  exd5 {[%clk 0:02:49]} 7. cxd5 {[%clk 0:02:51]}  Bd6 {[%clk 0:02:43]} 8. Nd2 {[%clk 0:02:25]}  Ba6 {[%clk 0:02:40]} 9. e4 {[%clk 0:02:17]}  Bxf1 {[%clk 0:02:39]} 10. Kxf1 {[%clk 0:02:18]}  O-O {[%clk 0:02:38]} 11. Nc4 {[%clk 0:02:09]}  Bc7 {[%clk 0:02:34]} 12. e5 {[%clk 0:01:59]}  Ne8 {[%clk 0:02:34]} 13. d6 {[%clk 0:01:45]}  Bb6 {[%clk 0:02:34]} 14. Qd5 {[%clk 0:01:43]}  Nc6 {[%clk 0:02:33]} 15. Be3 {[%clk 0:01:40]}  Kh8 {[%clk 0:02:32]} 16. Rd1 {[%clk 0:01:34]}  Qh4 {[%clk 0:02:28]} 17. g3 {[%clk 0:01:28]}  Qh3+ {[%clk 0:02:28]} 18. Qg2 {[%clk 0:01:22]}  Qe6 {[%clk 0:02:26]} 19. Qd5 {[%clk 0:01:19]}  Qh3+ {[%clk 0:02:26]} 20. Qg2 {[%clk 0:01:09]}  Qg4 {[%clk 0:02:26]} 21. b3 {[%clk 0:01:07]}  f6 {[%clk 0:02:22]} 22. f3 {[%clk 0:00:42]}  Qe6 {[%clk 0:02:21]} 23. Qd2 {[%clk 0:00:26]}  fxe5 {[%clk 0:02:19]} 24. Kg2 {[%clk 0:00:26]}  Nf6 {[%clk 0:02:16]} 25. Bxc5 {[%clk 0:00:22]}  e4 {[%clk 0:02:06]} 26. Rhf1 {[%clk 0:00:21]}  exf3+ {[%clk 0:02:06]} 27. Rxf3 {[%clk 0:00:21]}  Ne4 {[%clk 0:02:02]} 28. Qd5 {[%clk 0:00:13]}  Nxc5 {[%clk 0:01:52]} 29. Nxc5 {[%clk 0:00:10]}  Qe2+ {[%clk 0:01:52]} 30. Kh3 {[%clk 0:00:03]}  Rxf3 {[%clk 0:01:47]} 31. Nxd7 {[%clk 0:00:02]}  Rf2 {[%clk 0:01:48]} 32. Rh1 {[%clk 0:00:01]}  Bd8 {[%clk 0:01:32]} 33. Qxc6 {[%clk 0:00:01]}  Qh5# {[%clk 0:01:32]} 0-1


[Site "https://www.chess.com"]